lending/lending_fUSD_20250719
["ID","MTS","AMOUNT","RATE_DAILY","PERIOD"]
[373190985,1752899453189,-1001.14,0.00019397,2]
[373190987,1752899453198,-480.0,0.00019397,2]
[373190989,1752899453207,-511.56,0.00019397,2]
[373190990,1752899453217,-166.732244,0.00019397,2]
[373190992,1752899453226,-166.732244,0.00019397,2]
[373190995,1752899453237,-480.0,0.00019397,2]
[373190997,1752899453245,-166.732244,0.00019397,2]
[373190999,1752899453255,-480.0,0.00019397,2]
[373191001,1752899453264,-166.732244,0.00019397,2]
[373191002,1752899453273,-731.06,0.00019397,2]
[373191004,1752899453283,-480.0,0.00019397,2]
[373191006,1752899453292,-548.76994537,0.00019397,2]
[373191008,1752899453301,-213.44201,0.00019397,2]
[373191010,1752899453310,-480.0,0.00019397,2]
[373191012,1752899453319,-213.44201,0.00019397,2]
[373191014,1752899453328,-480.0,0.00019397,2]
[373191016,1752899453338,-480.0,0.00019397,2]
[373191018,1752899453347,-480.0,0.00019397,2]
[373191020,1752899453357,-213.44201,0.00019397,2]
[373191022,1752899453367,-213.44201,0.00019397,2]
[373191024,1752899453376,-2378.44,0.00019397,2]
[373191026,1752899453386,-480.0,0.00019397,2]
[373191028,1752899453397,-480.0,0.00019397,2]
[373191030,1752899453406,-480.0,0.00019397,2]
[373191032,1752899453416,-480.0,0.00019397,2]
[373191034,1752899453426,-480.0,0.00019397,2]
[373191036,1752899453435,-480.0,0.00019397,2]
[373191038,1752899453444,-516.11057345,0.00019397,2]
[373191040,1752899453454,-707.24,0.00019397,2]
[373191042,1752899453466,-480.0,0.00019397,2]
[373191044,1752899453476,-480.0,0.00019397,2]
[373191046,1752899453486,-1166.9,0.00019397,2]
[373191048,1752899453496,-524.58,0.00019397,2]
[373191050,1752899453507,-480.0,0.00019397,2]
[373191052,1752899453519,-1134.97,0.00019397,2]
[373191055,1752899453531,-523.31,0.00019397,2]
[373191057,1752899453545,-945.44,0.00019397,2]
[373191060,1752899453557,-480.0,0.00019397,2]
[373191062,1752899453569,-480.0,0.00019397,2]
[373191064,1752899453580,-785.15,0.00019397,2]
[373191066,1752899453590,-1053.75,0.00019397,2]
[373191068,1752899453601,-1373.09,0.00019397,2]
[373191070,1752899453612,-480.0,0.00019397,2]
[373191073,1752899453624,-480.0,0.00019397,2]
[373191075,1752899453636,-480.0,0.00019397,2]
[373191077,1752899453647,-615.11,0.00019397,2]
[373191079,1752899453658,-514.57,0.00019397,2]
[373191081,1752899453669,-480.0,0.00019397,2]
[373191084,1752899453681,-480.0,0.00019397,2]
[373191086,1752899453693,-779.31,0.00019397,2]
[373191088,1752899453704,-635.56,0.00019397,2]
[373191090,1752899453716,-480.0,0.00019397,2]
[373191092,1752899453727,-480.0,0.00019397,2]
[373191094,1752899453737,-523.69,0.00019397,2]
[373191096,1752899453747,-590.66,0.00019397,2]
[373191099,1752899453757,-1528.03,0.00019397,2]
[373191101,1752899453769,-480.0,0.00019397,2]
[373191103,1752899453781,-769.69,0.00019397,2]
[373191105,1752899453792,-526.43,0.00019397,2]
[373191107,1752899453804,-595.02,0.00019397,2]
[373191110,1752899453817,-480.0,0.00019397,2]
[373191112,1752899453828,-1688.12,0.00019397,2]
[373191114,1752899453840,-1721.15,0.00019397,2]
[373191116,1752899453851,-480.0,0.00019397,2]
[373191119,1752899453863,-480.0,0.00019397,2]
[373191121,1752899453874,-1079.74,0.00019397,2]
[373191123,1752899453885,-408.74209246,0.00019398,2]
[373191125,1752899453897,-5836.51,0.00019399,2]
[373191128,1752899453912,-150.0,0.00019399,2]
[373191130,1752899453923,-260710.90154028,0.000194,2]
[373191132,1752899453934,-307456.85312855,0.000194,2]
[373191134,1752899453947,-587.5870182,0.000194,2]
[373191136,1752899453958,-151.0,0.000194,2]
[373191139,1752899453970,-151.0,0.000194,2]
[373191141,1752899453983,-151.0,0.000194,2]
[373191143,1752899453995,-298.876607,0.000194,2]
[373191145,1752899454007,-166.732244,0.000194,2]
[373191147,1752899454019,-166.732244,0.000194,2]
[373191150,1752899454031,-166.732244,0.000194,2]
[373191152,1752899454043,-166.732244,0.000194,2]
[373191154,1752899454054,-213.44201,0.000194,2]
[373191156,1752899454066,-213.44201,0.000194,2]
[373191158,1752899454077,-213.44201,0.000194,2]
[373191160,1752899454091,-213.44201,0.000194,2]
[373191162,1752899454102,-168.0,0.00019402,2]
[373191165,1752899454112,-2541.45490299,0.00019405,2]
[373191167,1752899454123,-150.0,0.00019413,2]
[373191169,1752899454133,-234.09,0.00019417,2]
[373191171,1752899454144,-480.0,0.00019418,2]
[373191173,1752899454154,-480.0,0.00019418,2]
[373191175,1752899454164,-480.0,0.00019418,2]
[373191177,1752899454175,-480.0,0.00019418,2]
[373191179,1752899454186,-213.1102401,0.00019418,2]
[373191181,1752899454195,-866.88,0.00019418,2]
[373191184,1752899454207,-480.0,0.00019418,2]
[373191186,1752899454220,-480.0,0.00019418,2]
[373191188,1752899454233,-480.0,0.00019418,2]
[373191190,1752899454243,-480.0,0.00019418,2]
[373191192,1752899454253,-1377.22,0.00019418,2]
[373191194,1752899454264,-678.29,0.00019418,2]
[373191196,1752899454275,-480.0,0.00019418,2]
[373191198,1752899454286,-480.0,0.00019418,2]
[373191200,1752899454296,-480.0,0.00019418,2]
[373191203,1752899454308,-566.59002855,0.00019418,2]
[373191205,1752899454320,-1115.01,0.00019418,2]
[373191207,1752899454331,-480.0,0.00019418,2]
[373191209,1752899454343,-480.0,0.00019418,2]
[373191212,1752899454355,-513.73,0.00019418,2]
[373191214,1752899454366,-11099.59876311,0.00019422,2]
[373191216,1752899454376,-8933.65,0.0001943,2]
[373191218,1752899454386,-408.74209246,0.00019442,2]
[373191220,1752899454396,-150.0,0.00019452,2]
[373191222,1752899454406,-150.0,0.00019452,2]
[373191224,1752899454417,-150.0,0.00019452,2]
[373191226,1752899454427,-537.51568826,0.00019452,2]
[373191229,1752899454437,-150.0,0.00019452,2]
[373191231,1752899454448,-150.0,0.00019452,2]
[373191233,1752899454458,-150.0,0.00019452,2]
[373191235,1752899454468,-150.0,0.00019452,2]
[373191237,1752899454479,-502.24501823,0.00019452,2]
[373191239,1752899454489,-150.0,0.00019452,2]
[373191240,1752899454499,-154.8059766,0.00019452,2]
[373191241,1752899454510,-500.0,0.00019452,2]
[373191242,1752899454520,-150.0,0.00019452,2]
[373191243,1752899454531,-150.0,0.00019452,2]
[373191244,1752899454541,-676.0,0.00019452,2]
[373191245,1752899454552,-500.0,0.00019452,2]
[373191246,1752899454564,-150.0,0.00019452,2]
[373191247,1752899454574,-150.0,0.00019452,2]
[373191248,1752899454584,-150.0,0.00019452,2]
[373191249,1752899454595,-500.0,0.00019452,2]
[373191250,1752899454605,-150.0,0.00019452,2]
[373191251,1752899454616,-500.0,0.00019452,2]
[373191252,1752899454627,-500.0,0.00019452,2]
[373191253,1752899454637,-150.0,0.00019452,2]
[373191254,1752899454647,-150.0,0.00019452,2]
[373191255,1752899454658,-150.0,0.00019452,2]
[373191256,1752899454668,-150.0,0.00019452,2]
[373191257,1752899454678,-150.0,0.00019452,2]
[373191258,1752899454689,-548.48784065,0.00019452,2]
[373191259,1752899454699,-2774.0,0.00019452,2]
[373191260,1752899454710,-150.0,0.00019452,2]
[373191261,1752899454720,-150.0,0.00019452,2]
[373191262,1752899454730,-180.0,0.00019452,2]
[373191263,1752899454740,-150.0,0.00019452,2]
[373191264,1752899454751,-2541.45490299,0.00019462,2]
[373191266,1752899454762,-13030.0,0.00019463,7]
[373191268,1752899454772,-210.82967408,0.0001947,7]
[373191270,1752899454782,-210.82967408,0.0001947,2]
[373191272,1752899454794,-839.16344753,0.0001947,2]
[373191274,1752899454804,-476.80070012,0.0001947,2]
[373191277,1752899454821,-150.77,0.00019475,2]
[373191279,1752899454832,-77986.0780715,0.0001948,2]
[373191281,1752899454843,-3739.63400058,0.00019483,2]
[373191283,1752899454853,-2541.45490299,0.00019486,2]
[373191284,1752899454864,-408.74209246,0.00019487,2]
[373191285,1752899454876,-4818.9131449,0.00019491,2]
[373191286,1752899454887,-11349.0180145,0.00019491,2]
[373191287,1752899454899,-173.29,0.00019492,2]
[373191288,1752899454912,-166.732244,0.00019493,2]
[373191289,1752899454924,-166.732241,0.00019493,2]
[373191290,1752899454934,-213.44201,0.00019493,2]
[373191291,1752899454947,-213.44201,0.00019493,2]
[373191292,1752899454958,-3000.0,0.00019493,5]
[373191293,1752899454969,-355.0,0.00019495,2]
[373191294,1752899454983,-480.0,0.00019504,2]
[373191295,1752899454995,-2286.79,0.00019504,2]
[373191296,1752899455005,-480.0,0.00019504,2]
[373191297,1752899455015,-502.42,0.00019504,2]
[373191298,1752899455026,-480.0,0.00019504,2]
[373191299,1752899455037,-779.35,0.00019504,2]
[373191300,1752899455048,-480.0,0.00019504,2]
[373191303,1752899455062,-480.0,0.00019504,2]
[373191304,1752899455072,-480.0,0.00019506,2]
[373191305,1752899455082,-480.0,0.00019506,2]
[373191306,1752899455094,-480.0,0.00019506,2]
[373191307,1752899455104,-1667.17,0.00019506,2]
[373191308,1752899455115,-480.0,0.00019506,2]
[373191309,1752899455125,-480.0,0.00019506,2]
[373191310,1752899455137,-480.0,0.00019506,2]
[373191311,1752899455148,-480.0,0.00019506,2]
[373191312,1752899455159,-480.0,0.00019506,2]
[373191313,1752899455170,-480.0,0.00019506,2]
[373191314,1752899455181,-480.0,0.00019506,2]
[373191315,1752899455191,-480.0,0.00019506,2]
[373191316,1752899455201,-480.0,0.00019506,2]
[373191317,1752899455211,-480.0,0.00019506,2]
[373191318,1752899455223,-480.0,0.00019506,2]
[373191319,1752899455233,-480.0,0.00019506,2]
[373191320,1752899455243,-480.0,0.00019506,2]
[373191321,1752899455254,-480.0,0.00019506,2]
[373191322,1752899455265,-480.0,0.00019506,2]
[373191323,1752899455276,-480.0,0.00019506,2]
[373191324,1752899455286,-480.0,0.00019506,2]
[373191325,1752899455296,-480.0,0.00019506,2]
[373191326,1752899455307,-480.0,0.00019506,2]
[373191327,1752899455318,-480.0,0.00019506,2]
[373191328,1752899455328,-480.0,0.00019506,2]
[373191329,1752899455339,-480.0,0.00019506,2]
[373191330,1752899455349,-480.0,0.00019506,2]
[373191331,1752899455360,-505.5206025,0.00019506,2]
[373191332,1752899455371,-480.0,0.00019506,2]
[373191333,1752899455382,-480.0,0.00019506,2]
[373191334,1752899455392,-480.0,0.00019506,2]
[373191335,1752899455402,-480.0,0.00019506,2]
[373191336,1752899455412,-480.0,0.00019506,2]
[373191337,1752899455423,-480.0,0.00019506,2]
[373191338,1752899455433,-1134.86,0.00019506,2]
[373191339,1752899455444,-480.0,0.00019506,2]
[373191340,1752899455456,-480.0,0.00019506,2]
[373191341,1752899455466,-480.0,0.00019506,2]
[373191342,1752899455476,-487.98,0.00019506,2]
[373191343,1752899455486,-1007.98,0.00019506,2]
[373191344,1752899455497,-480.0,0.00019506,2]
[373191345,1752899455507,-480.0,0.00019506,2]
[373191346,1752899455517,-480.0,0.00019506,2]
[373191347,1752899455528,-480.0,0.00019506,2]
[373191348,1752899455538,-480.0,0.00019506,2]
[373191349,1752899455549,-925.23,0.00019506,2]
[373191350,1752899455559,-841.64,0.00019506,2]
[373191351,1752899455569,-635.47,0.00019506,2]
[373191352,1752899455579,-480.0,0.00019506,2]
[373191353,1752899455589,-9427.14,0.00019506,2]
[373191354,1752899455599,-480.0,0.00019506,2]
[373191355,1752899455609,-480.0,0.00019506,2]
[373191356,1752899455619,-1359.03,0.00019506,2]
[373191357,1752899455629,-480.0,0.00019506,2]
[373191358,1752899455640,-480.0,0.00019506,2]
[373191359,1752899455650,-1428.21,0.00019506,2]
[373191360,1752899455660,-480.0,0.00019506,2]
[373191361,1752899455670,-877.57,0.00019506,2]
[373191362,1752899455681,-4196.98,0.00019506,2]
[373191363,1752899455691,-480.0,0.00019506,2]
[373191364,1752899455702,-480.0,0.00019506,2]
[373191365,1752899455712,-514.81,0.00019506,2]
[373191366,1752899455722,-480.0,0.00019506,2]
[373191367,1752899455732,-480.0,0.00019506,2]
[373191368,1752899455742,-542.07,0.00019506,2]
[373191369,1752899455753,-189.10457,0.00019506,2]
[373191370,1752899455763,-480.0,0.00019506,2]
[373191371,1752899455773,-480.0,0.00019506,2]
[373191372,1752899455784,-480.0,0.00019506,2]
[373191373,1752899455794,-480.0,0.00019506,2]
[373191374,1752899455804,-480.0,0.00019506,2]
[373191375,1752899455823,-565.84,0.00019506,2]
[373191376,1752899455833,-486.44,0.00019506,2]
[373191377,1752899455843,-556.78204965,0.00019506,2]
[373191378,1752899455853,-480.0,0.00019506,2]
[373191379,1752899455863,-1052.04,0.00019506,2]
[373191380,1752899455874,-480.0,0.00019506,2]
[373191381,1752899455884,-480.0,0.00019506,2]
[373191382,1752899455894,-480.0,0.00019506,2]
[373191383,1752899455908,-480.0,0.00019506,2]
[373191384,1752899455918,-480.0,0.00019506,2]
[373191385,1752899455928,-480.43,0.00019506,2]
[373191386,1752899455939,-1198.72,0.00019506,2]
[373191387,1752899455950,-693.75,0.00019506,2]
[373191388,1752899455960,-580.25,0.00019506,2]
[373191389,1752899455971,-480.0,0.00019506,2]
[373191390,1752899455982,-480.0,0.00019506,2]
[373191391,1752899455992,-508.31,0.00019506,2]
[373191392,1752899456003,-480.0,0.00019506,2]
[373191393,1752899456013,-541.04,0.00019506,2]
[373191394,1752899456023,-480.0,0.00019506,2]
[373191395,1752899456033,-778.78,0.00019506,2]
[373191396,1752899456043,-480.0,0.00019506,2]
[373191397,1752899456053,-788.01,0.00019506,2]
[373191398,1752899456065,-520.04600877,0.00019506,2]
[373191399,1752899456075,-807.27,0.00019506,2]
[373191400,1752899456085,-1033.69,0.00019506,2]
[373191401,1752899456095,-480.0,0.00019506,2]
[373191402,1752899456106,-480.0,0.00019506,2]
[373191403,1752899456116,-480.0,0.00019506,2]
[373191404,1752899456126,-2213.62,0.00019506,2]
[373191405,1752899456137,-406.72177036,0.00019506,2]
[373191406,1752899456147,-480.0,0.00019506,2]
[373191407,1752899456157,-480.0,0.00019506,2]
[373191408,1752899456167,-480.0,0.00019506,2]
[373191409,1752899456178,-480.0,0.00019506,2]
[373191410,1752899456188,-697.21,0.00019506,2]
[373191411,1752899456198,-496.11,0.00019506,2]
[373191412,1752899456208,-597.67859897,0.00019506,2]
[373191413,1752899456218,-532.39,0.00019506,2]
[373191414,1752899456228,-480.0,0.00019506,2]
[373191415,1752899456238,-480.0,0.00019506,2]
[373191416,1752899456248,-3628.66,0.00019506,2]
[373191417,1752899456258,-1215.02,0.00019506,2]
[373191418,1752899456268,-1195.48,0.00019506,2]
[373191419,1752899456279,-1113.24,0.00019506,2]
[373191420,1752899456290,-480.0,0.00019506,2]
[373191421,1752899456300,-480.0,0.00019506,2]
[373191422,1752899456311,-916.83,0.00019506,2]
[373191423,1752899456321,-615.76,0.00019506,2]
[373191424,1752899456332,-480.0,0.00019506,2]
[373191425,1752899456342,-480.0,0.00019506,2]
[373191426,1752899456352,-551.74,0.00019506,2]
[373191427,1752899456362,-480.0,0.00019506,2]
[373191428,1752899456373,-748.42,0.00019506,2]
[373191429,1752899456384,-598.60686367,0.00019506,2]
[373191430,1752899456394,-609.2,0.00019506,2]
[373191431,1752899456405,-480.0,0.00019506,2]
[373191432,1752899456415,-480.0,0.00019506,2]
[373191433,1752899456425,-844.98,0.00019506,2]
[373191434,1752899456436,-1112.26,0.00019506,2]
[373191435,1752899456446,-480.0,0.00019506,2]
[373191436,1752899456456,-480.0,0.00019506,2]
[373191437,1752899456467,-1889.02,0.00019506,2]
[373191438,1752899456482,-501.52,0.00019506,2]
[373191439,1752899456493,-480.0,0.00019506,2]
[373191440,1752899456503,-480.0,0.00019506,2]
[373191441,1752899456514,-1001.14,0.00019506,2]
[373191442,1752899456528,-480.0,0.00019506,2]
[373191443,1752899456538,-511.56,0.00019506,2]
[373191444,1752899456548,-480.0,0.00019506,2]
[373191445,1752899456559,-480.0,0.00019506,2]
[373191446,1752899456569,-480.0,0.00019506,2]
[373191447,1752899456580,-731.06,0.00019506,2]
[373191448,1752899456591,-480.0,0.00019506,2]
[373191449,1752899456601,-480.0,0.00019506,2]
[373191450,1752899456611,-480.0,0.00019506,2]
[373191451,1752899456621,-480.0,0.00019506,2]
[373191452,1752899456632,-1688.73,0.00019506,2]
[373191453,1752899456642,-480.0,0.00019506,2]
[373191454,1752899456652,-2378.44,0.00019506,2]
[373191455,1752899456663,-480.0,0.00019506,2]
[373191456,1752899456674,-480.0,0.00019506,2]
[373191457,1752899456684,-480.0,0.00019506,2]
[373191458,1752899456695,-480.0,0.00019506,2]
[373191459,1752899456705,-480.0,0.00019506,2]
[373191460,1752899456716,-480.0,0.00019506,2]
[373191461,1752899456727,-707.24,0.00019506,2]
[373191462,1752899456738,-480.0,0.00019506,2]
[373191463,1752899456748,-480.0,0.00019506,2]
[373191464,1752899456759,-1166.9,0.00019506,2]
[373191465,1752899456769,-524.58,0.00019506,2]
[373191466,1752899456780,-1062.85,0.00019506,2]
[373191467,1752899456791,-480.0,0.00019506,2]
[373191468,1752899456801,-1134.97,0.00019506,2]
[373191469,1752899456813,-523.31,0.00019506,2]
[373191470,1752899456824,-945.44,0.00019506,2]
[373191471,1752899456836,-480.0,0.00019506,2]
[373191472,1752899456849,-480.0,0.00019506,2]
[373191473,1752899456860,-480.0,0.00019506,2]
[373191474,1752899456871,-785.15,0.00019506,2]
[373191475,1752899456886,-1053.75,0.00019506,2]
[373191476,1752899456899,-1373.09,0.00019506,2]
[373191477,1752899456913,-217.69944362,0.00019506,2]
[373191478,1752899456925,-190.85006906,0.00019506,2]
[373191479,1752899456938,-480.0,0.00019506,2]
[373191480,1752899456950,-615.11,0.00019506,2]
[373191481,1752899456961,-514.57,0.00019506,2]
[373191482,1752899456972,-480.0,0.00019506,2]
[373191483,1752899456983,-480.0,0.00019506,2]
[373191484,1752899456994,-779.31,0.00019506,2]
[373191485,1752899457005,-371.63313984,0.00019506,2]
[373191486,1752899457015,-635.56,0.00019506,2]
[373191487,1752899457027,-480.0,0.00019506,2]
[373191488,1752899457041,-480.0,0.00019506,2]
[373191489,1752899457543,-480.0,0.00019506,2]
[373191490,1752899457566,-523.69,0.00019506,2]
[373191491,1752899457580,-590.66,0.00019506,2]
[373191492,1752899457590,-545.34657788,0.00019506,2]
[373191493,1752899457600,-1528.03,0.00019506,2]
[373191494,1752899457610,-769.69,0.00019506,2]
[373191495,1752899457620,-526.43,0.00019506,2]
[373191496,1752899457630,-480.0,0.00019506,2]
[373191497,1752899457639,-480.0,0.00019506,2]
[373191498,1752899457649,-1068.12,0.00019506,2]
[373191499,1752899457658,-1688.12,0.00019506,2]
[373191500,1752899457668,-1721.15,0.00019506,2]
[373191501,1752899457677,-480.0,0.00019506,2]
[373191502,1752899457687,-480.0,0.00019506,2]
[373191503,1752899457696,-1083.0,0.00019518,2]
[373191504,1752899457706,-480.0,0.00019528,2]
[373191505,1752899457715,-480.0,0.00019528,2]
[373191506,1752899457725,-480.0,0.00019528,2]
[373191507,1752899457735,-480.0,0.00019528,2]
[373191508,1752899457745,-866.88,0.00019528,2]
[373191509,1752899457755,-480.0,0.00019528,2]
[373191510,1752899457764,-480.0,0.00019528,2]
[373191511,1752899457773,-480.0,0.00019528,2]
[373191512,1752899457783,-480.0,0.00019528,2]
[373191513,1752899457792,-1377.22,0.00019528,2]
[373191514,1752899457802,-678.29,0.00019528,2]
[373191515,1752899457813,-480.0,0.00019528,2]
[373191516,1752899457823,-480.0,0.00019528,2]
[373191517,1752899457833,-480.0,0.00019528,2]
[373191518,1752899457842,-1115.01,0.00019528,2]
[373191519,1752899457852,-480.0,0.00019528,2]
[373191520,1752899457862,-480.0,0.00019528,2]
[373191521,1752899457871,-513.73,0.00019528,2]
[373191522,1752899457881,-408.74209246,0.00019532,2]
[373191523,1752899457891,-204.62642102,0.00019548,2]
[373191524,1752899457904,-200.0,0.00019563,2]
[373191525,1752899457913,-200.0,0.00019563,2]
[373191526,1752899457924,-408.74209246,0.00019577,2]
[373191527,1752899457933,-480.0,0.00019614,2]
[373191528,1752899457943,-2286.79,0.00019614,2]
[373191529,1752899457954,-480.0,0.00019614,2]
[373191530,1752899457964,-502.42,0.00019614,2]
[373191531,1752899457975,-480.0,0.00019614,2]
[373191532,1752899457986,-779.35,0.00019614,2]
[373191533,1752899457996,-480.0,0.00019614,2]
[373191534,1752899458006,-480.0,0.00019614,2]
[373191535,1752899458015,-480.0,0.00019615,2]
[373191536,1752899458025,-841.64,0.00019615,2]
[373191537,1752899458035,-4196.98,0.00019615,2]
[373191538,1752899458044,-480.0,0.00019615,2]
[373191539,1752899458054,-480.0,0.00019615,2]
[373191540,1752899458065,-693.75,0.00019615,2]
[373191541,1752899458075,-480.0,0.00019615,2]
[373191542,1752899458084,-1113.24,0.00019615,2]
[373191543,1752899458095,-844.98,0.00019615,2]
[373191544,1752899458109,-480.0,0.00019615,2]
[373191545,1752899458119,-1688.73,0.00019615,2]
[373191546,1752899458129,-1062.85,0.00019615,2]
[373191547,1752899458138,-480.0,0.00019615,2]
[373191548,1752899458148,-480.0,0.00019615,2]
[373191549,1752899458158,-480.0,0.00019615,2]
[373191550,1752899458169,-1068.12,0.00019615,2]
[373191551,1752899458181,-480.0,0.00019616,2]
[373191552,1752899458191,-480.0,0.00019616,2]
[373191553,1752899458201,-480.0,0.00019616,2]
[373191554,1752899458211,-1667.17,0.00019616,2]
[373191555,1752899458221,-480.0,0.00019616,2]
[373191556,1752899458231,-480.0,0.00019616,2]
[373191557,1752899458243,-480.0,0.00019616,2]
[373191558,1752899458253,-480.0,0.00019616,2]
[373191559,1752899458264,-480.0,0.00019616,2]
[373191560,1752899458275,-480.0,0.00019616,2]
[373191561,1752899458285,-480.0,0.00019616,2]
[373191562,1752899458295,-480.0,0.00019616,2]
[373191563,1752899458306,-480.0,0.00019616,2]
[373191564,1752899458318,-480.0,0.00019616,2]
[373191565,1752899458327,-480.0,0.00019616,2]
[373191566,1752899458337,-480.0,0.00019616,2]
[373191567,1752899458347,-281.11692886,0.00019616,2]
[373191568,1752899458357,-480.0,0.00019616,2]
[373191569,1752899458369,-480.0,0.00019616,2]
[373191570,1752899458379,-480.0,0.00019616,2]
[373191571,1752899458388,-480.0,0.00019616,2]
[373191572,1752899458398,-545.2820486,0.00019616,2]
[373191573,1752899458409,-480.0,0.00019616,2]
[373191574,1752899458419,-480.0,0.00019616,2]
[373191575,1752899458429,-480.0,0.00019616,2]
[373191576,1752899458438,-480.0,0.00019616,2]
[373191577,1752899458448,-480.0,0.00019616,2]
[373191578,1752899458458,-480.0,0.00019616,2]
[373191579,1752899458467,-480.0,0.00019616,2]
[373191580,1752899458477,-480.0,0.00019616,2]
[373191581,1752899458486,-480.0,0.00019616,2]
[373191582,1752899458496,-480.0,0.00019616,2]
[373191583,1752899458506,-480.0,0.00019616,2]
[373191584,1752899458515,-1134.86,0.00019616,2]
[373191585,1752899458526,-480.0,0.00019616,2]
[373191586,1752899458536,-480.0,0.00019616,2]
[373191587,1752899458546,-480.0,0.00019616,2]
[373191588,1752899458555,-487.98,0.00019616,2]
[373191589,1752899458566,-1007.98,0.00019616,2]
[373191590,1752899458575,-480.0,0.00019616,2]
[373191591,1752899458585,-480.0,0.00019616,2]
[373191592,1752899458594,-480.0,0.00019616,2]
[373191593,1752899458604,-480.0,0.00019616,2]
[373191594,1752899458614,-925.23,0.00019616,2]
[373191595,1752899458625,-635.47,0.00019616,2]
[373191596,1752899458635,-480.0,0.00019616,2]
[373191597,1752899458645,-9427.14,0.00019616,2]
[373191598,1752899458655,-480.0,0.00019616,2]
[373191599,1752899458665,-480.0,0.00019616,2]
[373191600,1752899458675,-1359.03,0.00019616,2]
[373191601,1752899458686,-480.0,0.00019616,2]
[373191602,1752899458696,-480.0,0.00019616,2]
[373191603,1752899458706,-1428.21,0.00019616,2]
[373191604,1752899458716,-480.0,0.00019616,2]
[373191605,1752899458726,-877.57,0.00019616,2]
[373191606,1752899458738,-169.33,0.00019616,2]
[373191607,1752899458750,-480.0,0.00019616,2]
[373191608,1752899458759,-514.81,0.00019616,2]
[373191609,1752899458771,-480.0,0.00019616,2]
[373191610,1752899458783,-480.0,0.00019616,2]
[373191611,1752899458794,-542.07,0.00019616,2]
[373191612,1752899458804,-480.0,0.00019616,2]
[373191613,1752899458814,-480.0,0.00019616,2]
[373191614,1752899458823,-480.0,0.00019616,2]
[373191615,1752899458833,-480.0,0.00019616,2]
[373191616,1752899458843,-565.84,0.00019616,2]
[373191617,1752899458853,-486.44,0.00019616,2]
[373191618,1752899458864,-480.0,0.00019616,2]
[373191619,1752899458874,-1052.04,0.00019616,2]
[373191620,1752899458884,-480.0,0.00019616,2]
[373191621,1752899458894,-480.0,0.00019616,2]
[373191622,1752899458908,-480.0,0.00019616,2]
[373191623,1752899458917,-480.0,0.00019616,2]
[373191624,1752899458927,-480.43,0.00019616,2]
[373191625,1752899458936,-1198.72,0.00019616,2]
[373191626,1752899458947,-580.25,0.00019616,2]
[373191627,1752899458957,-290.95529566,0.00019616,2]
[373191628,1752899458967,-480.0,0.00019616,2]
[373191629,1752899458978,-508.31,0.00019616,2]
[373191630,1752899458987,-480.0,0.00019616,2]